lending/lending_fUSD_20240206
["ID","MTS","AMOUNT","RATE_DAILY","PERIOD"]
[313357227,1707227451518,-275.391815,0.00041096,14]
[313357228,1707227451527,-275.391815,0.00041096,14]
[313357229,1707227451537,-275.391815,0.00041096,14]
[313357230,1707227451546,-275.391815,0.00041096,14]
[313357231,1707227451556,-275.391815,0.00041096,14]
[313357232,1707227451567,-275.391815,0.00041096,14]
[313357233,1707227451577,-275.391815,0.00041096,14]
[313357234,1707227451586,-275.391815,0.00041096,14]
[313357235,1707227451596,-275.391815,0.00041096,14]
[313357236,1707227451605,-275.391815,0.00041096,14]
[313357237,1707227451615,-275.391815,0.00041096,14]
[313357238,1707227451624,-275.391815,0.00041096,14]
[313357239,1707227451634,-275.391815,0.00041096,14]
[313357240,1707227451643,-275.391815,0.00041096,14]
[313357241,1707227451652,-275.391815,0.00041096,14]
[313357242,1707227451661,-275.391815,0.00041096,14]
[313357243,1707227451671,-275.391815,0.00041096,14]
[313357244,1707227451680,-275.391824,0.00041096,14]
[313357245,1707227451690,-152.319651,0.00041096,7]
[313357246,1707227451700,-560.117614,0.00041096,14]
[313357247,1707227451709,-560.117614,0.00041096,14]
[313357248,1707227451718,-560.117614,0.00041096,14]
[313357249,1707227451728,-560.117614,0.00041096,14]
[313357250,1707227451737,-560.117614,0.00041096,14]
[313357251,1707227451746,-560.117614,0.00041096,14]
[313357252,1707227451756,-560.117614,0.00041096,14]
[313357253,1707227451766,-560.117614,0.00041096,14]
[313357254,1707227451776,-560.117614,0.00041096,14]
[313357255,1707227451785,-560.117614,0.00041096,14]
[313357256,1707227451794,-560.117614,0.00041096,14]
[313357257,1707227451803,-560.117614,0.00041096,14]
[313357258,1707227451812,-560.117614,0.00041096,14]
[313357259,1707227451821,-560.117614,0.00041096,14]
[313357260,1707227451831,-560.117614,0.00041096,14]
[313357261,1707227451840,-560.117614,0.00041096,14]
[313357262,1707227451850,-560.117614,0.00041096,14]
[313357263,1707227451859,-560.117614,0.00041096,14]
[313357264,1707227451872,-560.117614,0.00041096,14]
[313357265,1707227451883,-151.0,0.00041096,14]
[313357266,1707227451893,-560.117614,0.00041096,14]
[313357267,1707227451902,-151.0,0.00041096,14]
[313357268,1707227451911,-151.0,0.00041096,14]
[313357269,1707227451920,-151.0,0.00041096,14]
[313357270,1707227451929,-151.0,0.00041096,14]
[313357271,1707227451939,-151.0,0.00041096,14]
[313357272,1707227451950,-151.0,0.00041096,14]
[313357273,1707227451959,-151.0,0.00041096,14]
[313357274,1707227451969,-151.0,0.00041096,14]
[313357275,1707227451979,-151.0,0.00041096,14]
[313357276,1707227451989,-151.0,0.00041096,14]
[313357277,1707227451998,-151.0,0.00041096,14]
[313357278,1707227452008,-153.344444,0.00041096,14]
[313357279,1707227452017,-187.060158,0.00041096,14]
[313357280,1707227452027,-151.0,0.00041096,14]
[313357281,1707227452037,-210.419552,0.00041096,14]
[313357282,1707227452046,-151.0,0.00041096,14]
[313357283,1707227452059,-210.419552,0.00041096,14]
[313357284,1707227452070,-151.0,0.00041096,14]
[313357285,1707227452080,-151.0,0.00041096,14]
[313357286,1707227452089,-172.291961,0.00041096,14]
[313357287,1707227452099,-210.419552,0.00041096,14]
[313357288,1707227452108,-210.419552,0.00041096,14]
[313357289,1707227452118,-210.419552,0.00041096,14]
[313357290,1707227452127,-210.419552,0.00041096,14]
[313357291,1707227452138,-210.419552,0.00041096,14]
[313357292,1707227452148,-210.419552,0.00041096,14]
[313357293,1707227452157,-210.419552,0.00041096,14]
[313357294,1707227452167,-210.419552,0.00041096,14]
[313357295,1707227452178,-210.419552,0.00041096,14]
[313357296,1707227452187,-210.419552,0.00041096,14]
[313357297,1707227452198,-210.419552,0.00041096,14]
[313357298,1707227452207,-210.419552,0.00041096,14]
[313357299,1707227452218,-151.0,0.00041096,14]
[313357300,1707227452228,-210.419552,0.00041096,14]
[313357301,1707227452238,-210.419552,0.00041096,14]
[313357302,1707227452249,-151.0,0.00041096,14]
[313357303,1707227452259,-210.419552,0.00041096,14]
[313357304,1707227452269,-188.935583,0.00041096,14]
[313357305,1707227452279,-210.419552,0.00041096,14]
[313357306,1707227452289,-210.419552,0.00041096,14]
[313357307,1707227452298,-210.419553,0.00041096,14]
[313357308,1707227452307,-151.0,0.00041096,14]
[313357309,1707227452317,-151.0,0.00041096,14]
[313357310,1707227452328,-151.0,0.00041096,14]
[313357311,1707227452338,-151.0,0.00041096,14]
[313357312,1707227452350,-151.0,0.00041096,14]
[313357313,1707227452359,-151.0,0.00041096,14]
[313357314,1707227452369,-151.0,0.00041096,14]
[313357315,1707227452379,-151.0,0.00041096,14]
[313357316,1707227452390,-286.212929,0.00041096,14]
[313357317,1707227452399,-151.0,0.00041096,14]
[313357318,1707227452409,-151.0,0.00041096,14]
[313357319,1707227452419,-151.0,0.00041096,14]
[313357320,1707227452429,-151.0,0.00041096,14]
[313357321,1707227452439,-151.0,0.00041096,14]
[313357322,1707227452450,-151.0,0.00041096,14]
[313357323,1707227452460,-151.0,0.00041096,14]
[313357324,1707227452473,-151.0,0.00041096,14]
[313357325,1707227452488,-162.329221,0.00041096,14]
[313357326,1707227452510,-151.0,0.00041096,14]
[313357327,1707227452528,-151.0,0.00041096,14]
[313357328,1707227452538,-171.548413,0.00041096,14]
[313357329,1707227452547,-151.0,0.00041096,14]
[313357330,1707227452558,-151.0,0.00041096,14]
[313357331,1707227452568,-151.0,0.00041096,14]
[313357332,1707227452578,-151.0,0.00041096,14]
[313357333,1707227452588,-151.0,0.00041096,14]
[313357334,1707227452599,-151.0,0.00041096,14]
[313357335,1707227452608,-151.0,0.00041096,14]
[313357336,1707227452617,-151.0,0.00041096,14]
[313357337,1707227452627,-151.0,0.00041096,14]
[313357338,1707227452637,-151.0,0.00041096,14]
[313357339,1707227452717,-151.0,0.00041096,14]
[313357340,1707227452727,-151.0,0.00041096,14]
[313357341,1707227452737,-151.0,0.00041096,14]
[313357342,1707227452747,-260.036451,0.00041096,14]
[313357343,1707227452756,-151.0,0.00041096,14]
[313357344,1707227452767,-151.0,0.00041096,14]
[313357345,1707227452777,-151.0,0.00041096,14]
[313357346,1707227452787,-151.0,0.00041096,14]
[313357347,1707227452796,-300.851633,0.00041096,14]
[313357348,1707227452805,-152.420918,0.00041096,14]
[313357349,1707227452815,-208.04,0.00041096,30]
[313357350,1707227452824,-480.828516,0.00041096,14]
[313357351,1707227452834,-480.828516,0.00041096,14]
[313357352,1707227452844,-480.828516,0.00041096,14]
[313357353,1707227452854,-480.828516,0.00041096,14]
[313357354,1707227452864,-480.828516,0.00041096,14]
[313357355,1707227452875,-480.828516,0.00041096,14]
[313357356,1707227452885,-480.828516,0.00041096,14]
[313357357,1707227452894,-480.828516,0.00041096,14]
[313357358,1707227452904,-480.828516,0.00041096,14]
[313357359,1707227452914,-480.828516,0.00041096,14]
[313357360,1707227452923,-480.828516,0.00041096,14]
[313357361,1707227452932,-480.828516,0.00041096,14]
[313357362,1707227452943,-480.828516,0.00041096,14]
[313357363,1707227452953,-480.828516,0.00041096,14]
[313357364,1707227452963,-480.828516,0.00041096,14]
[313357365,1707227452973,-480.828516,0.00041096,14]
[313357366,1707227452984,-480.828516,0.00041096,14]
[313357367,1707227452994,-480.828516,0.00041096,14]
[313357368,1707227453004,-480.828516,0.00041096,14]
[313357369,1707227453014,-480.828521,0.00041096,14]
[313357370,1707227453023,-151.0,0.00041096,14]
[313357371,1707227453034,-151.0,0.00041096,14]
[313357372,1707227453044,-151.0,0.00041096,14]
[313357373,1707227453054,-151.0,0.00041096,14]
[313357374,1707227453064,-151.0,0.00041096,14]
[313357375,1707227453075,-151.0,0.00041096,14]
[313357376,1707227453085,-151.0,0.00041096,14]
[313357377,1707227453095,-151.0,0.00041096,14]
[313357378,1707227453105,-151.0,0.00041096,14]
[313357379,1707227453115,-151.0,0.00041096,14]
[313357380,1707227453124,-151.0,0.00041096,14]
[313357381,1707227453134,-151.0,0.00041096,14]
[313357382,1707227453144,-151.0,0.00041096,14]
[313357383,1707227453154,-151.0,0.00041096,14]
[313357384,1707227453165,-151.0,0.00041096,14]
[313357385,1707227453174,-187.355702,0.00041096,14]
[313357386,1707227453185,-151.0,0.00041096,14]
[313357387,1707227453196,-211.475728,0.00041096,14]
[313357388,1707227453206,-182.436683,0.00041096,14]
[313357389,1707227453216,-151.0,0.00041096,14]
[313357390,1707227453226,-151.0,0.00041096,14]
[313357391,1707227453236,-151.0,0.00041096,14]
[313357392,1707227453246,-151.0,0.00041096,14]
[313357393,1707227453256,-151.0,0.00041096,14]
[313357394,1707227453267,-151.0,0.00041096,14]
[313357395,1707227453277,-151.0,0.00041096,14]
[313357396,1707227453287,-151.0,0.00041096,14]
[313357397,1707227453298,-151.0,0.00041096,14]
[313357398,1707227453308,-151.0,0.00041096,14]
[313357399,1707227453317,-151.0,0.00041096,14]
[313357400,1707227453328,-151.0,0.00041096,14]
[313357401,1707227453338,-151.0,0.00041096,14]
[313357402,1707227453348,-151.0,0.00041096,14]
[313357403,1707227453357,-151.0,0.00041096,14]
[313357404,1707227453366,-151.0,0.00041096,14]
[313357405,1707227453375,-151.0,0.00041096,14]
[313357406,1707227453385,-151.0,0.00041096,14]
[313357407,1707227453394,-240.230144,0.00041096,14]
[313357408,1707227453402,-533.3,0.00041096,2]
[313357409,1707227453412,-154.230696,0.00041096,14]
[313357410,1707227453421,-433.086805,0.00041096,14]
[313357411,1707227453430,-433.086805,0.00041096,14]
[313357412,1707227453438,-433.086805,0.00041096,14]
[313357413,1707227453447,-433.086805,0.00041096,14]
[313357414,1707227453456,-433.086805,0.00041096,14]
[313357415,1707227453465,-433.086805,0.00041096,14]
[313357416,1707227453474,-433.086805,0.00041096,14]
[313357417,1707227453484,-433.086805,0.00041096,14]
[313357418,1707227453492,-433.086805,0.00041096,14]
[313357419,1707227453503,-433.086805,0.00041096,14]
[313357420,1707227453513,-433.086805,0.00041096,14]
[313357421,1707227453524,-433.086805,0.00041096,14]
[313357422,1707227453534,-433.086805,0.00041096,14]
[313357423,1707227453543,-433.086805,0.00041096,14]
[313357424,1707227453552,-433.086805,0.00041096,14]
[313357425,1707227453561,-433.086805,0.00041096,14]
[313357426,1707227453570,-433.086805,0.00041096,14]
[313357427,1707227453579,-433.086805,0.00041096,14]
[313357428,1707227453588,-433.086805,0.00041096,14]
[313357429,1707227453597,-433.086803,0.00041096,14]
[313357430,1707227453606,-151.0,0.00041096,14]
[313357431,1707227453615,-151.0,0.00041096,14]
[313357432,1707227453624,-151.0,0.00041096,14]
[313357433,1707227453633,-151.0,0.00041096,14]
[313357434,1707227453643,-151.0,0.00041096,14]
[313357435,1707227453652,-171.656922,0.00041096,14]
[313357436,1707227453662,-151.0,0.00041096,14]
[313357437,1707227453671,-151.0,0.00041096,14]
[313357438,1707227453681,-151.0,0.00041096,14]
[313357439,1707227453691,-151.0,0.00041096,14]
[313357440,1707227453700,-151.0,0.00041096,14]
[313357441,1707227453710,-269.819403,0.00041096,14]
[313357442,1707227453720,-151.0,0.00041096,14]
[313357443,1707227453729,-151.0,0.00041096,14]
[313357444,1707227453739,-151.0,0.00041096,14]
[313357445,1707227453748,-151.0,0.00041096,14]
[313357446,1707227453758,-151.0,0.00041096,14]
[313357447,1707227453767,-152.581866,0.00041096,14]
[313357448,1707227453777,-151.0,0.00041096,14]
[313357449,1707227453786,-151.0,0.00041096,14]
[313357450,1707227453796,-151.0,0.00041096,14]
[313357451,1707227453873,-151.0,0.00041096,14]
[313357452,1707227453883,-151.0,0.00041096,14]
[313357453,1707227453893,-151.0,0.00041096,14]
[313357454,1707227453903,-151.0,0.00041096,14]
[313357455,1707227453913,-151.0,0.00041096,14]
[313357456,1707227453922,-242.015973,0.00041096,14]
[313357457,1707227453932,-151.0,0.00041096,14]
[313357458,1707227453942,-151.0,0.00041096,14]
[313357459,1707227453953,-151.0,0.00041096,14]
[313357460,1707227453963,-151.0,0.00041096,14]
[313357461,1707227453973,-151.0,0.00041096,14]
[313357462,1707227453982,-151.0,0.00041096,14]
[313357463,1707227453992,-151.0,0.00041096,14]
[313357464,1707227454003,-151.0,0.00041096,14]
[313357465,1707227454014,-151.0,0.00041096,14]
[313357466,1707227454024,-151.0,0.00041096,14]
[313357467,1707227454034,-151.0,0.00041096,14]
[313357468,1707227454043,-151.0,0.00041096,14]
[313357469,1707227454053,-199.839242,0.00041096,14]
[313357470,1707227454062,-151.0,0.00041096,14]
[313357471,1707227454071,-151.0,0.00041096,14]
[313357472,1707227454080,-151.0,0.00041096,14]
[313357473,1707227454089,-151.0,0.00041096,14]
[313357474,1707227454099,-155.138884,0.00041096,14]
[313357475,1707227454109,-151.0,0.00041096,14]
[313357476,1707227454119,-151.0,0.00041096,14]
[313357477,1707227454128,-151.0,0.00041096,14]
[313357478,1707227454138,-151.0,0.00041096,14]
[313357479,1707227454147,-151.0,0.00041096,14]
[313357480,1707227454157,-267.623128,0.00041096,14]
[313357481,1707227454166,-151.0,0.00041096,14]
[313357482,1707227454175,-151.0,0.00041096,14]
[313357483,1707227454184,-174.242753,0.00041096,14]
[313357484,1707227454193,-904.376246,0.00041096,14]
[313357485,1707227454203,-904.376246,0.00041096,14]
[313357486,1707227454212,-904.376246,0.00041096,14]
[313357487,1707227454222,-904.376246,0.00041096,14]
[313357488,1707227454230,-904.376246,0.00041096,14]
[313357489,1707227454240,-904.376246,0.00041096,14]
[313357490,1707227454249,-904.376246,0.00041096,14]
[313357491,1707227454261,-904.376246,0.00041096,14]
[313357492,1707227454270,-904.376246,0.00041096,14]
[313357493,1707227454279,-904.376246,0.00041096,14]
[313357494,1707227454289,-302.618432,0.00041096,14]
[313357495,1707227454298,-904.376246,0.00041096,14]
[313357496,1707227454307,-302.618432,0.00041096,14]
[313357497,1707227454316,-904.376246,0.00041096,14]
[313357498,1707227454325,-302.618432,0.00041096,14]
[313357499,1707227454334,-904.376246,0.00041096,14]
[313357500,1707227454343,-302.618432,0.00041096,14]
[313357501,1707227454352,-904.376246,0.00041096,14]
[313357502,1707227454362,-302.618432,0.00041096,14]
[313357503,1707227454385,-302.618432,0.00041096,14]
[313357504,1707227454402,-904.376246,0.00041096,14]
[313357505,1707227454422,-302.618432,0.00041096,14]
[313357506,1707227454441,-904.376246,0.00041096,14]
[313357507,1707227454458,-302.618432,0.00041096,14]
[313357508,1707227454474,-302.618432,0.00041096,14]
[313357509,1707227454492,-302.618432,0.00041096,14]
[313357510,1707227454512,-904.376246,0.00041096,14]
[313357511,1707227454529,-302.618432,0.00041096,14]
[313357512,1707227454547,-904.376246,0.00041096,14]
[313357513,1707227454569,-302.618432,0.00041096,14]
[313357514,1707227454585,-302.618432,0.00041096,14]
[313357515,1707227454599,-904.376246,0.00041096,14]
[313357516,1707227454615,-302.618432,0.00041096,14]
[313357517,1707227454631,-904.376251,0.00041096,14]
[313357518,1707227454645,-302.618432,0.00041096,14]
[313357519,1707227454660,-302.618432,0.00041096,14]
[313357520,1707227454674,-302.618432,0.00041096,14]
[313357521,1707227454689,-302.618432,0.00041096,14]
[313357522,1707227454703,-302.618432,0.00041096,14]
[313357523,1707227454718,-302.618423,0.00041096,14]
[313357524,1707227454732,-151.0,0.00041096,14]
[313357525,1707227454746,-151.0,0.00041096,14]
[313357526,1707227454760,-162.312444,0.00041096,14]
[313357527,1707227454774,-151.0,0.00041096,2]
[313357528,1707227454788,-151.0,0.00041096,2]
[313357529,1707227454804,-151.0,0.00041096,2]
[313357530,1707227454818,-151.0,0.00041096,2]
[313357531,1707227454832,-151.0,0.00041096,2]
[313357532,1707227454847,-296.007956,0.00041096,2]
[313357533,1707227454862,-151.0,0.00041096,14]
[313357534,1707227454876,-162.991041,0.00041096,14]
[313357535,1707227454891,-151.0,0.00041096,14]
[313357536,1707227454906,-151.0,0.00041096,14]
[313357537,1707227454921,-151.0,0.00041096,14]
[313357538,1707227454935,-151.0,0.00041096,14]
[313357539,1707227454950,-153.04858,0.00041096,14]
[313357540,1707227454965,-983.90495,0.00041096,14]
[313357541,1707227454980,-983.90495,0.00041096,14]
[313357542,1707227454996,-983.90495,0.00041096,14]
[313357543,1707227455010,-983.90495,0.00041096,14]
[313357544,1707227455025,-983.90495,0.00041096,14]
[313357545,1707227455040,-983.90495,0.00041096,14]
[313357546,1707227455055,-983.90495,0.00041096,14]
[313357547,1707227455068,-983.90495,0.00041096,14]
[313357548,1707227455083,-983.90495,0.00041096,14]
[313357549,1707227455099,-983.90495,0.00041096,14]
[313357550,1707227455119,-983.90495,0.00041096,14]
[313357551,1707227455134,-983.90495,0.00041096,14]
[313357552,1707227455150,-983.90495,0.00041096,14]
[313357553,1707227455166,-983.90495,0.00041096,14]
[313357554,1707227455279,-983.90495,0.00041096,14]
[313357555,1707227455295,-983.90495,0.00041096,14]
[313357556,1707227455306,-983.90495,0.00041096,14]
[313357557,1707227455315,-983.90495,0.00041096,14]
[313357558,1707227455325,-983.90495,0.00041096,14]
[313357559,1707227455334,-983.90495,0.00041096,14]
[313357560,1707227455343,-2796.0,0.00041096,30]
[313357561,1707227455352,-150.0,0.00041096,2]
[313357562,1707227455361,-155.0,0.00041097,2]
[313357563,1707227455371,-385.47461765,0.000411,15]
[313357564,1707227455380,-167.78,0.000411,7]
[313357565,1707227455390,-405.24244888,0.000411,4]
[313357566,1707227455399,-155.0,0.000411,4]
[313357567,1707227455409,-5636.51327,0.000411,2]
[313357568,1707227455418,-976.72735558,0.000411,5]
[313357569,1707227455427,-385.4519274,0.000411,2]
[313357570,1707227455436,-161.02,0.000411,7]
[313357571,1707227455445,-153.92,0.000412,4]
[313357572,1707227455454,-153.92,0.000412,4]
[313357573,1707227455464,-153.92,0.000412,4]
[313357574,1707227455474,-153.92,0.000412,4]
[313357575,1707227455483,-150.0,0.00041384,2]
[313357576,1707227455493,-208.0,0.000414,31]
[313357577,1707227455501,-2010.56,0.0004142,2]
[313357578,1707227455511,-160.15,0.00041489,2]
[313357579,1707227455520,-4757.0,0.000415,7]
[313357580,1707227455529,-184.48236092,0.00041522,4]
[313357581,1707227455538,-1263.55266018,0.0004154,2]
[313357582,1707227455547,-5000.0,0.00041761,4]
[313357583,1707227455556,-251.06678544,0.000418,30]
[313357584,1707227455565,-2354.05121116,0.00041847,5]
[313357585,1707227455574,-668.30173701,0.00041853,14]
[313357586,1707227455583,-19621.92335073,0.000419,4]
[313357587,1707227455592,-75000.0,0.00041918,15]
[313357588,1707227455602,-702.63765976,0.0004197,3]
[313357589,1707227455611,-227.30451944,0.00041989,3]
[313357590,1707227455620,-280.88518602,0.00041989,3]
[313357591,1707227455630,-227.30451944,0.00041989,3]
[313357592,1707227455639,-280.88518602,0.00041989,3]
[313357593,1707227455648,-118610.85424937,0.0004199,3]
[313357594,1707227455658,-2132965.86470456,0.0004199,3]
[313357595,1707227455668,-74523.97413283,0.0004199,2]
[313357596,1707227455677,-50000.0,0.00042,22]
[313357597,1707227455687,-1507.54319265,0.00042,30]
[313357598,1707227455696,-8703.36115878,0.00042,2]
[313357599,1707227455705,-8993.17060956,0.00042,2]
[313357600,1707227455715,-961.05268,0.00042,2]
[313357601,1707227455724,-1440.30403502,0.00042,2]
[313357602,1707227455734,-1571.5,0.00042,2]
[313357603,1707227455743,-250.0,0.00042,7]
[313357604,1707227455752,-250.0,0.00042,7]
[313357605,1707227455761,-250.0,0.00042,7]
[313357606,1707227455771,-250.0,0.00042,7]
[313357607,1707227455780,-250.0,0.00042,7]
[313357608,1707227455790,-279.1,0.00042,7]
[313357609,1707227455800,-151.476389,0.00042,4]
[313357610,1707227455809,-1200.0,0.00042,43]
[313357611,1707227455819,-304.683673,0.00042,49]
[313357612,1707227455828,-512.399082,0.00042,14]
[313357613,1707227455838,-200.0,0.00042,2]
[313357614,1707227455848,-1294.78908778,0.0004201,2]
[313357615,1707227455858,-232.81,0.00042192,2]
[313357616,1707227455869,-150.0,0.00042192,2]
[313357617,1707227455878,-150.0,0.00042192,2]
[313357618,1707227455887,-150.0,0.00042192,2]
[313357619,1707227455898,-150.0,0.00042192,2]
[313357620,1707227455908,-150.0,0.00042192,2]
[313357621,1707227455918,-150.0,0.00042192,2]
[313357622,1707227455928,-150.0,0.00042192,2]
[313357623,1707227455938,-150.0,0.00042192,2]
[313357624,1707227455947,-150.0,0.00042192,2]
[313357625,1707227455958,-150.0,0.00042192,2]
[313357626,1707227455968,-150.0,0.00042192,2]
[313357627,1707227455977,-150.0,0.00042192,2]
[313357628,1707227455987,-150.0,0.00042192,2]
[313357629,1707227455996,-150.0,0.00042192,2]
[313357630,1707227456005,-150.0,0.00042192,2]
[313357631,1707227456015,-150.0,0.00042192,2]
[313357632,1707227456024,-150.0,0.00042192,2]
[313357633,1707227456034,-150.0,0.00042192,2]
[313357634,1707227456044,-150.0,0.00042192,2]
[313357635,1707227456053,-150.0,0.00042192,2]
[313357636,1707227456064,-150.0,0.00042192,2]
[313357637,1707227456074,-150.0,0.00042192,2]
[313357638,1707227456083,-150.0,0.00042192,2]
[313357639,1707227456093,-1000.0,0.00042205,2]
[313357640,1707227456103,-161.02,0.000423,7]
[313357641,1707227456112,-4757.0,0.000423,7]
[313357642,1707227456122,-2010.56,0.000423,2]
[313357643,1707227456131,-150.0,0.00042394,2]
[313357644,1707227456141,-914.74,0.00042465,5]
[313357645,1707227456151,-151.0,0.00042466,2]
[313357646,1707227456161,-250.49088,0.00042466,2]
[313357647,1707227456170,-155.0,0.00042467,2]
[313357648,1707227456181,-1000.0,0.000427,2]
[313357649,1707227456190,-664.0,0.0004279,2]
[313357650,1707227456201,-582.0,0.0004279,2]
[313357651,1707227456212,-1000.0,0.000428,9]
[313357652,1707227456221,-1000.0,0.00042826,10]
[313357653,1707227456232,-227.30451944,0.00042879,4]
[313357654,1707227456243,-280.88518602,0.00042879,4]
[313357655,1707227456253,-227.30451944,0.00042879,4]
[313357656,1707227456262,-280.88518602,0.00042879,4]
[313357657,1707227456272,-10024.71499988,0.0004288,28]
[313357658,1707227456282,-205.94324365,0.0004288,2]
[313357659,1707227456291,-158.29246639,0.0004288,2]
[313357660,1707227456301,-184.97656251,0.0004288,120]
[313357661,1707227456311,-244.87340083,0.0004288,120]
[313357662,1707227456322,-1678.28663423,0.0004288,120]
[313357663,1707227456332,-999.999999,0.0004288,120]
[313357664,1707227456341,-236.28221813,0.0004288,17]
[313357665,1707227456350,-248.20453901,0.0004288,120]
[313357666,1707227456361,-184.78300324,0.0004288,120]
[313357667,1707227456372,-166142.42930845,0.0004288,2]
[313357668,1707227456382,-16157.34116693,0.0004288,2]
[313357669,1707227456393,-12877.37354063,0.0004288,2]
[313357670,1707227456403,-1210.0,0.0004288,2]
[313357671,1707227456413,-369.46566073,0.0004288,120]
[313357672,1707227456423,-2118.66630481,0.0004288,2]
[313357673,1707227456432,-236.79360076,0.0004288,30]
[313357674,1707227456442,-334.23893487,0.0004288,2]
[313357675,1707227456452,-2887.2824777,0.0004288,2]
[313357676,1707227456462,-5794.38604124,0.0004288,2]
[313357677,1707227456472,-1460.05231935,0.0004288,2]
[313357678,1707227456482,-7079.56598719,0.0004288,2]
[313357679,1707227456491,-2625.17055947,0.0004288,2]
[313357680,1707227456501,-2356.88432226,0.0004288,2]
[313357681,1707227456511,-2565.44586491,0.0004288,2]
[313357682,1707227456521,-131943.57621279,0.0004288,2]
[313357683,1707227456532,-3119.97979744,0.0004288,2]
[313357684,1707227456542,-167.32987746,0.0004288,2]
[313357685,1707227456552,-10006.40312279,0.0004288,2]
[313357686,1707227456561,-151.1428025,0.0004288,30]
[313357687,1707227456571,-3036.33830358,0.0004288,2]
[313357688,1707227456581,-3660.77807551,0.0004288,2]
[313357689,1707227456591,-1805.38282985,0.0004288,7]
[313357690,1707227456601,-14527.51722083,0.0004288,2]
[313357691,1707227456611,-1026.18314217,0.0004288,2]
[313357692,1707227456620,-211.52335966,0.0004288,120]
[313357693,1707227456630,-10193.25753633,0.0004288,2]
[313357694,1707227456641,-2130.11008339,0.0004288,2]
[313357695,1707227456650,-259496.25419547,0.0004288,2]
[313357696,1707227456660,-877.48374435,0.0004288,2]
[313357697,1707227456670,-26517.66392541,0.0004288,2]
[313357698,1707227456679,-9164.3888207,0.0004288,2]
[313357699,1707227456689,-463.07490524,0.0004288,2]
[313357700,1707227456699,-14632.41355322,0.0004288,2]
[313357701,1707227456708,-227.95915407,0.0004288,2]
[313357702,1707227456717,-2047.98753144,0.0004288,2]
[313357703,1707227456727,-388.32717261,0.0004288,2]
[313357704,1707227456737,-526.52149391,0.0004288,2]
[313357705,1707227456747,-9828.3362727,0.0004288,2]
[313357706,1707227456756,-350.25129366,0.0004288,2]
[313357707,1707227456766,-9382.44986703,0.0004288,2]
[313357708,1707227456775,-36684.11537904,0.0004288,2]
[313357709,1707227456785,-151.55933127,0.0004288,30]
[313357710,1707227456867,-266167.68361038,0.0004288,2]
[313357711,1707227456881,-534.04530895,0.0004288,30]
[313357712,1707227456890,-1943.21601598,0.0004288,2]
[313357713,1707227456900,-174.15414706,0.0004288,120]
[313357714,1707227456909,-1765.57146155,0.0004288,2]
[313357715,1707227456919,-1314.99628197,0.0004288,30]
[313357716,1707227456928,-1546.09419213,0.0004288,120]
[313357717,1707227456937,-9239.73936543,0.0004288,2]
[313357718,1707227456947,-249.92436169,0.0004288,30]
[313357719,1707227456957,-380.74684002,0.0004288,2]
[313357720,1707227456966,-28329.9048,0.0004288,7]
[313357721,1707227456975,-697.88125777,0.0004288,2]
[313357722,1707227456984,-7500.0,0.0004288,30]
[313357723,1707227456994,-179.02091588,0.0004288,120]
[313357724,1707227457004,-783.7622348,0.0004288,120]
[313357725,1707227457015,-195.63104115,0.0004288,60]
[313357726,1707227457024,-275.91223023,0.0004288,2]